[Event "14th Poti Open-A 2019"]
[Site "Poti"]
[Date "2019.07.14"]
[Round "2.5"]
[White "Eynullayev, Atilla"]
[Black "Maghalashvili, Davit"]
[Result "1/2-1/2"]
[ECO "A43"]
[WhiteElo "2228"]
[BlackElo "2485"]
[Annotator "ChessBase"]
[PlyCount "157"]
[EventDate "2019.07.13"]
[EventType "swiss"]
[EventCountry "GEO"]
[SourceTitle "playchess.com"]
[Source "ChessBase"]
[SourceQuality "1"]
[TimeControl "40/5400+30:1800+30"]

1. d4 {[%emt 0:00:00]} Nf6 {[%emt 0:00:00]} 2. c4 {[%emt 0:00:00]} c5 {[%emt 0:00:00]} 3. d5 {[%emt 0:00:00]} d6 {[%emt 0:00:00]} 4. Nc3 {[%emt 0:00:00]} g6 {[%emt 0:00:00]} 5. e4 {[%emt 0:00:00]} Bg7 {[%emt 0:00:00]} 6. Be2 {[%emt 0:00:02]} O-O {[%emt 0:00:05]} 7. Be3 {[%emt 0:00:04]} e6 {[%emt 0:00:20]} 8. Nf3 {[%emt 0:00:05]} exd5 {[%emt 0:00:05]} 9. cxd5 {[%emt 0:00:05]} Bg4 {[%emt 0:00:16]} 10. Nd2 {[%emt 0:00:06]} Bxe2 {[%emt 0:00:08]} 11. Qxe2 {[%emt 0:00:05]} Re8 {[%emt 0:00:45]} 12. O-O {[%emt 0:00:07]} Na6 {[%emt 0:00:14]} 13. Kh1 {[%emt 0:00:06]} Nc7 {[%emt 0:01:08]} 14. a4 {[%emt 0:01:11]} Rb8 {[%emt 0:04:30]} 15. Bg5 {[%emt 0:00:07]} Qd7 {[%emt 0:05:54]} 16. Qd3 {[%emt 0:00:21]} a6 {[%emt 0:06:04]} 17. a5 {[%emt 0:20:36]} b5 {[%emt 0:00:28]} 18. axb6 {[%emt 0:00:48]} Rxb6 {[%emt 0:00:04]} 19. Nc4 {[%emt 0:03:06]} Rb3 {[%emt 0:00:17]} 20. f3 {[%emt 0:15:53]} Reb8 {[%emt 0:08:57]} 21. Bf4 {[%emt 0:09:52]} Bf8 {[%emt 0:01:59]} 22. e5 {[%emt 0:08:34]} Nh5 {[%emt 0:06:48]} 23. Be3 {[%emt 0:02:57]} dxe5 {[%emt 0:08:55]} 24. Nxe5 {[%emt 0:03:06]} Qe8 {[%emt 0:03:23]} 25. Nc4 {[%emt 0:03:39]} Rd8 {[%emt 0:06:47]} 26. d6 {[%emt 0:03:21]} Ne6 {[%emt 0:01:14]} 27. Rxa6 {[%emt 0:01:35]} Bg7 {[%emt 0:00:13]} 28. Rb6 {[%emt 0:07:26]} Rxb6 {[%emt 0:02:35]} 29. Nxb6 {[%emt 0:00:05]} Qc6 {[%emt 0:01:26]} 30. Nc4 {[%emt 0:01:38]} Nd4 {[%emt 0:00:21]} 31. Qe4 {[%emt 0:03:34]} Qa6 {[%emt 0:03:10]} 32. Qd5 {[%emt 0:02:01]} Ne6 {[%emt 0:12:17]} 33. Rd1 {[%emt 0:02:26]} Nf6 {[%emt 0:04:03]} 34. Qd3 {[%emt 0:00:46]} Nd7 {[%emt 0:00:30]} 35. Nd5 {[%emt 0:02:14]} Qb7 {[%emt 0:01:16]} 36. Ne7+ {[%emt 0:03:05]} Kf8 {[%emt 0:01:52]} 37. f4 {[%emt 0:02:34]} Nd4 {[%emt 0:04:59]} 38. f5 {[%emt 0:01:56]} Ne5 {[%emt 0:00:54]} 39. Nxe5 {[%emt 0:00:37]} Bxe5 {[%emt 0:00:05]} 40. fxg6 {[%emt 0:00:00]} Rxd6 {[%emt 0:00:00]} 41. Rf1 {[%emt 0:05:55]} Rf6 {[%emt 0:09:23]} 42. Bg5 {[%emt 0:15:42]} Qxe7 {[%emt 0:05:49]} 43. Bxf6 {[%emt 0:00:23]} Bxf6 {[%emt 0:00:06]} 44. gxh7 {[%emt 0:00:30]} Kg7 {[%emt 0:02:19]} 45. Qh3 {[%emt 0:05:09]} Kh8 {[%emt 0:00:15]} 46. Qh6 {[%emt 0:01:25]} Bg7 {[%emt 0:04:15]} 47. Qh5 {[%emt 0:00:19]} f5 {[%emt 0:01:18]} 48. Ra1 {[%emt 0:03:21]} Bf8 {[%emt 0:00:21]} 49. Qg6 {[%emt 0:01:14]} Qxh7 {[%emt 0:01:13]} 50. Qxh7+ {[%emt 0:01:25]} Kxh7 {[%emt 0:00:05]} 51. Kg1 {[%emt 0:00:17]} Kg6 {[%emt 0:00:20]} 52. Ra6+ {[%emt 0:00:58]} Kg5 {[%emt 0:00:36]} 53. g3 {[%emt 0:00:27]} Nf3+ {[%emt 0:02:28]} 54. Kg2 {[%emt 0:00:51]} Nd4 {[%emt 0:03:31]} 55. Kf2 {[%emt 0:00:45]} Bg7 {[%emt 0:00:30]} 56. Ra5 {[%emt 0:01:22]} Nc6 {[%emt 0:01:10]} 57. Rb5 {[%emt 0:01:44]} Nb4 {[%emt 0:00:32]} 58. Kf3 {[%emt 0:00:44]} Bd4 {[%emt 0:02:09]} 59. b3 {[%emt 0:00:41]} Nd3 {[%emt 0:00:15]} 60. Ke2 {[%emt 0:01:08]} Nb4 {[%emt 0:00:18]} 61. Kf3 {[%emt 0:00:12]} Nc2 {[%emt 0:00:47]} 62. h3 {[%emt 0:00:41]} Be3 {[%emt 0:01:19]} 63. Rb8 {[%emt 0:00:43]} Bc1 {[%emt 0:01:41]} 64. Ke2 {[%emt 0:00:46]} Nd4+ {[%emt 0:00:16]} 65. Kd3 {[%emt 0:00:19]} Nc6 {[%emt 0:00:33]} 66. Rc8 {[%emt 0:00:39]} Ne5+ {[%emt 0:00:14]} 67. Ke2 {[%emt 0:00:33]} Ba3 {[%emt 0:00:20]} 68. Ke3 {[%emt 0:00:10]} Bb4 {[%emt 0:01:59]} 69. Rg8+ {[%emt 0:00:47]} Kh6 {[%emt 0:01:05]} 70. g4 {[%emt 0:00:51]} fxg4 {[%emt 0:04:16]} 71. hxg4 {[%emt 0:00:05]} Nc6 {[%emt 0:00:20]} 72. Kd3 {[%emt 0:00:37]} Nd4 {[%emt 0:00:10]} 73. Kc4 {[%emt 0:00:06]} Nf3 {[%emt 0:00:09]} 74. Kd5 {[%emt 0:00:45]} Nd2 {[%emt 0:00:34]} 75. Rb8 {[%emt 0:00:08]} Nxb3 {[%emt 0:00:28]} 76. Rxb4 {[%emt 0:00:10]} cxb4 {[%emt 0:00:03]} 77. Kc4 {[%emt 0:00:04]} Kg5 {[%emt 0:00:08]} 78. Kxb3 {[%emt 0:00:04]} Kxg4 {[%emt 0:00:03]} 79. Kxb4 {[%emt 0:00:06]} 1/2-1/2

[Event "14th Poti Open-A 2019"]
[Site "Poti"]
[Date "2019.07.14"]
[Round "2.6"]
[White "Babujian, Levon"]
[Black "Botoyan, Smbat"]
[Result "1/2-1/2"]
[ECO "D20"]
[WhiteElo "2469"]
[BlackElo "2240"]
[Annotator "ChessBase"]
[PlyCount "89"]
[EventDate "2019.07.13"]
[EventType "swiss"]
[EventCountry "GEO"]
[SourceTitle "playchess.com"]
[Source "ChessBase"]
[SourceQuality "1"]
[TimeControl "40/5400+30:1800+30"]

1. d4 {[%emt 0:00:02]} d5 {[%emt 0:00:00]} 2. c4 {[%emt 0:00:07]} dxc4 {[%emt 0:00:00]} 3. e4 {[%emt 0:00:06]} e5 {[%emt 0:00:00]} 4. Nf3 {[%emt 0:00:13]} Nf6 {[%emt 0:00:12]} 5. Nc3 {[%emt 0:04:47]} exd4 {[%emt 0:00:14]} 6. Qxd4 {[%emt 0:02:01]} Qxd4 {[%emt 0:00:08]} 7. Nxd4 {[%emt 0:00:04]} Bc5 {[%emt 0:00:54]} 8. Ndb5 {[%emt 0:00:50]} Na6 {[%emt 0:00:51]} 9. Bf4 {[%emt 0:02:23]} c6 {[%emt 0:03:58]} 10. Nd6+ {[%emt 0:00:13]} Bxd6 {[%emt 0:00:07]} 11. Bxd6 {[%emt 0:00:03]} Be6 {[%emt 0:00:49]} 12. f4 {[%emt 0:01:59]} O-O-O {[%emt 0:03:21]} 13. O-O-O {[%emt 0:03:59]} Ne8 {[%emt 0:17:57]} 14. Be7 {[%emt 0:01:19]} Rxd1+ {[%emt 0:02:14]} 15. Nxd1 {[%emt 0:00:07]} f6 {[%emt 0:01:18]} 16. f5 {[%emt 0:00:36]} Bf7 {[%emt 0:00:20]} 17. e5 {[%emt 0:04:34]} fxe5 {[%emt 0:06:07]} 18. Ne3 {[%emt 0:00:05]} b5 {[%emt 0:02:49]} 19. Be2 {[%emt 0:00:34]} Nf6 {[%emt 0:08:34]} 20. Ng4 {[%emt 0:05:04]} Nd7 {[%emt 0:07:15]} 21. h4 {[%emt 0:01:24]} h5 {[%emt 0:06:03]} 22. Nf2 {[%emt 0:00:28]} Bd5 {[%emt 0:01:46]} 23. Rh3 {[%emt 0:00:25]} Nac5 {[%emt 0:03:59]} 24. Rg3 {[%emt 0:00:36]} Rh7 {[%emt 0:02:12]} 25. Rg6 {[%emt 0:02:17]} e4 {[%emt 0:06:30]} 26. Nh3 {[%emt 0:00:26]} Nd3+ {[%emt 0:00:18]} 27. Kc2 {[%emt 0:00:38]} N7e5 {[%emt 0:01:40]} 28. Rg5 {[%emt 0:01:15]} e3 {[%emt 0:01:22]} 29. Rg3 {[%emt 0:02:44]} Be4 {[%emt 0:05:40]} 30. Ng5 {[%emt 0:01:05]} Bxf5 {[%emt 0:06:10]} 31. Nxh7 {[%emt 0:00:22]} Nf2+ {[%emt 0:02:13]} 32. Kc1 {[%emt 0:02:19]} Ned3+ {[%emt 0:00:37]} 33. Bxd3 {[%emt 0:01:50]} Nxd3+ {[%emt 0:00:41]} 34. Kd1 {[%emt 0:00:08]} Nxb2+ {[%emt 0:00:35]} 35. Ke2 {[%emt 0:00:09]} c3 {[%emt 0:01:58]} 36. Bc5 {[%emt 0:02:44]} Bd3+ {[%emt 0:07:20]} 37. Ke1 {[%emt 0:00:07]} Bxh7 {[%emt 0:01:19]} 38. Bxe3 {[%emt 0:00:11]} Nd3+ {[%emt 0:00:50]} 39. Kd1 {[%emt 0:03:11]} Nb2+ {[%emt 0:00:18]} 40. Ke2 {[%emt 0:00:00]} Bd3+ {[%emt 0:00:00]} 41. Ke1 {[%emt 0:01:42]} g6 {[%emt 0:01:58]} 42. Bxa7 {[%emt 0:00:52]} b4 {[%emt 0:05:07]} 43. Bd4 {[%emt 0:04:37]} Bf5 {[%emt 0:01:42]} 44. a3 {[%emt 0:03:39]} c5 {[%emt 0:12:44]} 45. Bxc5 {[%emt 0:01:05]} 1/2-1/2

[Event "14th Poti Open-A 2019"]
[Site "Poti"]
[Date "2019.07.14"]
[Round "2.7"]
[White "Shahinyan, David"]
[Black "Dolzhykova, Kateryna"]
[Result "1-0"]
[ECO "B23"]
[WhiteElo "2445"]
[BlackElo "2228"]
[Annotator "ChessBase"]
[PlyCount "69"]
[EventDate "2019.07.13"]
[EventType "swiss"]
[EventCountry "GEO"]
[SourceTitle "playchess.com"]
[Source "ChessBase"]
[SourceQuality "1"]
[TimeControl "40/5400+30:1800+30"]

1. e4 {[%emt 0:00:38]} c5 {[%emt 0:00:00]} 2. Nc3 {[%emt 0:00:07]} e6 {[%emt 0:00:01]} 3. g3 {[%emt 0:00:20]} Nc6 {[%emt 0:08:10]} 4. Bg2 {[%emt 0:01:00]} g6 {[%emt 0:03:35]} 5. d3 {[%emt 0:00:08]} Bg7 {[%emt 0:00:49]} 6. Be3 {[%emt 0:00:04]} d6 {[%emt 0:00:39]} 7. Qd2 {[%emt 0:00:05]} Rb8 {[%emt 0:00:56]} 8. Nge2 {[%emt 0:00:30]} b5 {[%emt 0:02:20]} 9. O-O {[%emt 0:01:11]} b4 {[%emt 0:00:23]} 10. Nd1 {[%emt 0:00:05]} Bb7 {[%emt 0:02:29]} 11. a3 {[%emt 0:02:22]} a5 {[%emt 0:01:13]} 12. axb4 {[%emt 0:00:04]} axb4 {[%emt 0:00:09]} 13. d4 {[%emt 0:00:18]} Qe7 {[%emt 0:08:56]} 14. c3 {[%emt 0:04:18]} Nf6 {[%emt 0:04:04]} 15. e5 {[%emt 0:07:57]} Nd7 {[%emt 0:09:25]} 16. Bg5 {[%emt 0:21:37]} f6 {[%emt 0:01:40]} 17. exf6 {[%emt 0:01:55]} Nxf6 {[%emt 0:00:48]} 18. d5 {[%emt 0:04:19]} Ne5 {[%emt 0:03:33]} 19. Nf4 {[%emt 0:01:56]} exd5 {[%emt 0:07:02]} 20. Ra7 {[%emt 0:02:21]} O-O {[%emt 0:09:40]} 21. Nxd5 {[%emt 0:01:56]} Qd7 {[%emt 0:05:57]} 22. Nxf6+ {[%emt 0:04:03]} Bxf6 {[%emt 0:00:13]} 23. Rxb7 {[%emt 0:00:04]} Rxb7 {[%emt 0:00:47]} 24. Qd5+ {[%emt 0:00:06]} Nf7 {[%emt 0:06:26]} 25. Bxf6 {[%emt 0:00:21]} Ra7 {[%emt 0:00:02]} 26. Ne3 {[%emt 0:00:51]} Re8 {[%emt 0:00:50]} 27. cxb4 {[%emt 0:00:55]} cxb4 {[%emt 0:00:15]} 28. Qd4 {[%emt 0:00:35]} b3 {[%emt 0:01:12]} 29. Bc6 {[%emt 0:00:34]} Qxc6 {[%emt 0:05:17]} 30. Qxa7 {[%emt 0:00:15]} d5 {[%emt 0:00:00]} 31. Qd4 {[%emt 0:00:23]} Re4 {[%emt 0:01:37]} 32. Qxd5 {[%emt 0:00:20]} Qxf6 {[%emt 0:01:04]} 33. Qxe4 {[%emt 0:00:06]} Ng5 {[%emt 0:00:01]} 34. Qd5+ {[%emt 0:00:13]} Kg7 {[%emt 0:00:11]} 35. h4 {[%emt 0:00:24]} 1-0

[Event "14th Poti Open-A 2019"]
[Site "Poti"]
[Date "2019.07.14"]
[Round "2.8"]
[White "Tereladze, Sopiko"]
[Black "Urazayev, Arystanbek"]
[Result "1/2-1/2"]
[ECO "C44"]
[WhiteElo "2144"]
[BlackElo "2436"]
[Annotator "ChessBase"]
[PlyCount "82"]
[EventDate "2019.07.13"]
[EventType "swiss"]
[EventCountry "GEO"]
[SourceTitle "playchess.com"]
[Source "ChessBase"]
[SourceQuality "1"]
[TimeControl "40/5400+30:1800+30"]

1. e4 {[%emt 0:00:29]} e5 {[%emt 0:01:12]} 2. Nf3 {[%emt 0:00:28]} Nc6 {[%emt 0:00:07]} 3. d4 {[%emt 0:00:22]} exd4 {[%emt 0:00:11]} 4. Nxd4 {[%emt 0:00:02]} Nf6 {[%emt 0:00:07]} 5. Nc3 {[%emt 0:00:05]} Bb4 {[%emt 0:04:36]} 6. Nxc6 {[%emt 0:00:27]} bxc6 {[%emt 0:00:04]} 7. Bd3 {[%emt 0:00:11]} O-O {[%emt 0:00:04]} 8. O-O {[%emt 0:00:07]} Re8 {[%emt 0:00:12]} 9. Re1 {[%emt 0:01:29]} d5 {[%emt 0:04:38]} 10. exd5 {[%emt 0:01:48]} Rxe1+ {[%emt 0:00:11]} 11. Qxe1 {[%emt 0:00:05]} cxd5 {[%emt 0:00:05]} 12. Bg5 {[%emt 0:01:07]} Be6 {[%emt 0:20:16]} 13. Bxf6 {[%emt 0:11:16]} gxf6 {[%emt 0:00:05]} 14. Qe3 {[%emt 0:08:16]} Bxc3 15. bxc3 {[%emt 0:10:57]} f5 {[%emt 0:12:54]} 16. Qg3+ {[%emt 0:01:36]} Kh8 {[%emt 0:05:38]} 17. Qe5+ {[%emt 0:04:43]} Kg8 {[%emt 0:00:04]} 18. Re1 {[%emt 0:09:57]} Qd6 {[%emt 0:10:45]} 19. Qf6 {[%emt 0:14:06]} Bd7 {[%emt 0:05:56]} 20. Qg5+ {[%emt 0:00:42]} Qg6 {[%emt 0:01:37]} 21. Qf4 {[%emt 0:00:22]} c5 {[%emt 0:03:47]} 22. Re3 {[%emt 0:03:11]} Qf6 {[%emt 0:01:34]} 23. Re5 {[%emt 0:11:08]} Rb8 {[%emt 0:05:14]} 24. g3 {[%emt 0:09:27]} Rb1+ {[%emt 0:07:04]} 25. Kg2 {[%emt 0:00:43]} Kf8 {[%emt 0:00:48]} 26. Bxf5 {[%emt 0:00:37]} Bc6 {[%emt 0:00:33]} 27. Re2 {[%emt 0:06:51]} Bb5 {[%emt 0:03:20]} 28. Bd3 {[%emt 0:00:55]} Qxf4 {[%emt 0:01:16]} 29. gxf4 {[%emt 0:00:01]} Bxd3 {[%emt 0:01:09]} 30. cxd3 {[%emt 0:00:00]} Rd1 {[%emt 0:00:27]} 31. Re3 {[%emt 0:00:16]} d4 {[%emt 0:02:31]} 32. cxd4 {[%emt 0:00:49]} cxd4 {[%emt 0:00:05]} 33. Re5 {[%emt 0:02:15]} Rxd3 {[%emt 0:00:19]} 34. Ra5 {[%emt 0:00:20]} Ke7 {[%emt 0:00:48]} 35. Rxa7+ {[%emt 0:00:02]} Ke6 {[%emt 0:00:08]} 36. f5+ {[%emt 0:00:13]} Kf6 {[%emt 0:01:47]} 37. Rd7 {[%emt 0:00:15]} h5 {[%emt 0:01:14]} 38. a4 {[%emt 0:00:22]} Rd2 {[%emt 0:01:33]} 39. a5 {[%emt 0:00:21]} Ra2 {[%emt 0:00:17]} 40. Rxd4 {[%emt 0:00:00]} Rxa5 {[%emt 0:00:00]} 41. Rb4 {[%emt 0:00:35]} Kxf5 {[%emt 0:00:21]} 1/2-1/2

[Event "14th Poti Open-A 2019"]
[Site "Poti"]
[Date "2019.07.14"]
[Round "2.9"]
[White "Arabidze, Meri"]
[Black "Yeritsyan, Hayk"]
[Result "1/2-1/2"]
[ECO "D37"]
[WhiteElo "2402"]
[BlackElo "2210"]
[Annotator "ChessBase"]
[PlyCount "61"]
[EventDate "2019.07.13"]
[EventType "swiss"]
[EventCountry "GEO"]
[SourceTitle "playchess.com"]
[Source "ChessBase"]
[SourceQuality "1"]
[TimeControl "40/5400+30:1800+30"]

1. d4 {[%emt 0:00:00]} d5 {[%emt 0:00:00]} 2. c4 {[%emt 0:00:00]} e6 {[%emt 0:00:08]} 3. Nc3 {[%emt 0:00:03]} Be7 {[%emt 0:00:16]} 4. Nf3 {[%emt 0:00:11]} Nf6 {[%emt 0:00:18]} 5. Bf4 {[%emt 0:00:09]} c5 {[%emt 0:01:41]} 6. dxc5 {[%emt 0:00:16]} Bxc5 {[%emt 0:00:10]} 7. e3 {[%emt 0:00:12]} Nc6 {[%emt 0:00:09]} 8. a3 {[%emt 0:01:17]} O-O {[%emt 0:00:23]} 9. Qc2 {[%emt 0:00:14]} Qa5 {[%emt 0:00:25]} 10. Nd2 {[%emt 0:00:57]} Be7 {[%emt 0:05:29]} 11. Bg3 {[%emt 0:00:30]} Qb6 {[%emt 0:00:18]} 12. cxd5 {[%emt 0:21:42]} exd5 {[%emt 0:00:38]} 13. Bd3 {[%emt 0:00:21]} d4 {[%emt 0:20:24]} 14. Nc4 {[%emt 0:06:19]} Qd8 {[%emt 0:01:43]} 15. Nb5 {[%emt 0:03:16]} Be6 {[%emt 0:14:02]} 16. O-O {[%emt 0:05:24]} Bxc4 {[%emt 0:05:21]} 17. Qxc4 {[%emt 0:10:48]} Nh5 {[%emt 0:09:54]} 18. Nxd4 {[%emt 0:08:02]} Nxd4 {[%emt 0:00:13]} 19. exd4 {[%emt 0:00:25]} Nxg3 {[%emt 0:00:26]} 20. hxg3 {[%emt 0:00:33]} Rc8 {[%emt 0:04:06]} 21. Qa4 {[%emt 0:02:39]} Qb6 {[%emt 0:00:57]} 22. d5 {[%emt 0:04:28]} g6 {[%emt 0:02:59]} 23. Rab1 {[%emt 0:04:41]} Bd6 {[%emt 0:01:40]} 24. Qg4 {[%emt 0:03:10]} Rfe8 {[%emt 0:01:39]} 25. Qf3 {[%emt 0:01:33]} Re5 {[%emt 0:00:42]} 26. Rfd1 {[%emt 0:02:14]} Rce8 {[%emt 0:01:56]} 27. Qf6 {[%emt 0:03:53]} Qd8 {[%emt 0:02:18]} 28. Qxd8 {[%emt 0:02:33]} Rxd8 {[%emt 0:00:10]} 29. Bc4 {[%emt 0:00:55]} Rc8 {[%emt 0:01:42]} 30. Rbc1 {[%emt 0:01:31]} Kf8 {[%emt 0:00:45]} 31. Kf1 {[%emt 0:05:10]} 1/2-1/2

[Event "14th Poti Open-A 2019"]
[Site "Poti"]
[Date "2019.07.14"]
[Round "2.10"]
[White "Azaryan, Tigran"]
[Black "Aliyev, Ravan"]
[Result "1/2-1/2"]
[ECO "B06"]
[WhiteElo "2064"]
[BlackElo "2385"]
[Annotator "ChessBase"]
[PlyCount "72"]
[EventDate "2019.07.13"]
[EventType "swiss"]
[EventCountry "GEO"]
[SourceTitle "playchess.com"]
[Source "ChessBase"]
[SourceQuality "1"]
[TimeControl "40/5400+30:1800+30"]

1. e4 {[%emt 0:00:00]} g6 {[%emt 0:00:00]} 2. d4 {[%emt 0:00:58]} Bg7 {[%emt 0:00:01]} 3. Nc3 {[%emt 0:00:33]} c6 {[%emt 0:00:17]} 4. h4 {[%emt 0:04:46]} h5 {[%emt 0:03:09]} 5. Bc4 {[%emt 0:02:19]} d5 {[%emt 0:01:19]} 6. exd5 {[%emt 0:02:44]} b5 {[%emt 0:00:01]} 7. Bb3 {[%emt 0:05:55]} b4 {[%emt 0:00:07]} 8. Nce2 {[%emt 0:10:55]} cxd5 {[%emt 0:00:18]} 9. Nf4 {[%emt 0:00:15]} e6 {[%emt 0:13:32]} 10. c3 {[%emt 0:11:50]} bxc3 {[%emt 0:02:02]} 11. bxc3 {[%emt 0:00:25]} Nc6 {[%emt 0:01:47]} 12. Nf3 {[%emt 0:06:08]} Nge7 {[%emt 0:00:39]} 13. Ng5 {[%emt 0:01:45]} Nf5 {[%emt 0:19:13]} 14. Kf1 {[%emt 0:06:21]} Bd7 {[%emt 0:05:35]} 15. Bc2 {[%emt 0:05:11]} Nce7 {[%emt 0:04:59]} 16. Ba3 {[%emt 0:16:49]} Qc7 {[%emt 0:06:45]} 17. Qf3 {[%emt 0:02:29]} Bf6 {[%emt 0:14:41]} 18. Bxe7 {[%emt 0:02:02]} Bxe7 {[%emt 0:03:36]} 19. Bxf5 {[%emt 0:00:24]} gxf5 {[%emt 0:02:06]} 20. Nxh5 {[%emt 0:01:25]} Rc8 {[%emt 0:03:23]} 21. Rc1 {[%emt 0:01:22]} Qc4+ {[%emt 0:01:09]} 22. Kg1 {[%emt 0:00:02]} Qxa2 {[%emt 0:00:07]} 23. g4 {[%emt 0:00:05]} Bxg5 {[%emt 0:08:53]} 24. hxg5 {[%emt 0:00:31]} Qd2 {[%emt 0:00:02]} 25. Qe3 {[%emt 0:07:51]} Qxe3 {[%emt 0:01:10]} 26. fxe3 {[%emt 0:00:01]} fxg4 {[%emt 0:01:22]} 27. Ra1 {[%emt 0:00:01]} Ke7 {[%emt 0:03:22]} 28. Rxa7 {[%emt 0:00:06]} Ra8 {[%emt 0:00:14]} 29. Rxa8 {[%emt 0:00:40]} Rxa8 {[%emt 0:00:01]} 30. Nf6 {[%emt 0:01:03]} Bb5 {[%emt 0:02:56]} 31. Kf2 {[%emt 0:02:02]} Bd3 {[%emt 0:01:10]} 32. Kg3 {[%emt 0:00:53]} Bf5 {[%emt 0:01:00]} 33. Nxg4 {[%emt 0:00:55]} Rg8 {[%emt 0:00:35]} 34. Kf4 {[%emt 0:03:54]} Bxg4 {[%emt 0:00:10]} 35. Kxg4 {[%emt 0:00:05]} f6 {[%emt 0:00:14]} 36. Rh5 {[%emt 0:00:25]} fxg5 {[%emt 0:00:09]} 1/2-1/2

[Event "14th Poti Open-A 2019"]
[Site "Poti"]
[Date "2019.07.14"]
[Round "2.11"]
[White "Gharibyan, Mamikon"]
[Black "Nikoladze, Sopio"]
[Result "0-1"]
[ECO "B07"]
[WhiteElo "2350"]
[BlackElo "2124"]
[Annotator "ChessBase"]
[PlyCount "64"]
[EventDate "2019.07.13"]
[EventType "swiss"]
[EventCountry "GEO"]
[SourceTitle "playchess.com"]
[Source "ChessBase"]
[SourceQuality "1"]
[TimeControl "40/5400+30:1800+30"]

1. d4 {[%emt 0:00:00]} d6 {[%emt 0:00:10]} 2. e4 {[%emt 0:01:17]} Nf6 {[%emt 0:00:07]} 3. Nc3 {[%emt 0:00:27]} e5 {[%emt 0:00:05]} 4. Nf3 {[%emt 0:02:07]} exd4 {[%emt 0:05:44]} 5. Nxd4 {[%emt 0:00:41]} Be7 {[%emt 0:00:05]} 6. g3 {[%emt 0:12:22]} d5 {[%emt 0:01:09]} 7. e5 {[%emt 0:03:44]} Ng4 {[%emt 0:00:06]} 8. e6 {[%emt 0:22:07]} Nf6 {[%emt 0:00:26]} 9. exf7+ {[%emt 0:03:26]} Kxf7 {[%emt 0:00:25]} 10. Bg2 {[%emt 0:00:19]} Re8 {[%emt 0:09:33]} 11. O-O {[%emt 0:01:10]} Kg8 {[%emt 0:01:16]} 12. Qf3 {[%emt 0:13:33]} Bc5 {[%emt 0:10:44]} 13. Nb3 {[%emt 0:04:55]} Bg4 {[%emt 0:04:41]} 14. Qd3 {[%emt 0:02:08]} Na6 {[%emt 0:03:56]} 15. Nxc5 {[%emt 0:02:45]} Nxc5 {[%emt 0:00:11]} 16. Qb5 {[%emt 0:17:45]} b6 {[%emt 0:04:09]} 17. Bg5 {[%emt 0:05:00]} d4 {[%emt 0:01:46]} 18. Bxa8 {[%emt 0:01:53]} Qxa8 {[%emt 0:00:15]} 19. Bxf6 {[%emt 0:00:07]} dxc3 {[%emt 0:02:13]} 20. Rae1 {[%emt 0:02:15]} Re4 {[%emt 0:01:43]} 21. Rxe4 {[%emt 0:01:07]} Qxe4 {[%emt 0:02:25]} 22. f3 {[%emt 0:00:40]} Qe3+ {[%emt 0:03:42]} 23. Kg2 {[%emt 0:00:30]} gxf6 {[%emt 0:04:54]} 24. fxg4 {[%emt 0:00:45]} Qe4+ {[%emt 0:00:09]} 25. Rf3 {[%emt 0:00:21]} c6 {[%emt 0:01:18]} 26. Qf1 {[%emt 0:00:02]} cxb2 {[%emt 0:00:44]} 27. Qd1 {[%emt 0:00:47]} Ne6 {[%emt 0:01:46]} 28. Qd7 {[%emt 0:00:38]} Qxc2+ {[%emt 0:01:03]} 29. Rf2 {[%emt 0:00:16]} Qe4+ {[%emt 0:00:25]} 30. Kh3 {[%emt 0:00:10]} Nf8 {[%emt 0:00:47]} 31. Qd8 {[%emt 0:00:21]} b1=Q {[%emt 0:00:28]} 32. Rxf6 {[%emt 0:00:05]} Qbb4 {[%emt 0:00:26]} 0-1

[Event "14th Poti Open-A 2019"]
[Site "Poti"]
[Date "2019.07.14"]
[Round "2.12"]
[White "Lomaia, Diana"]
[Black "Chkhaidze, Nikoloz"]
[Result "0-1"]
[ECO "D30"]
[WhiteElo "1807"]
[BlackElo "2330"]
[Annotator "ChessBase"]
[PlyCount "62"]
[EventDate "2019.07.13"]
[EventType "swiss"]
[EventCountry "GEO"]
[SourceTitle "playchess.com"]
[Source "ChessBase"]
[SourceQuality "1"]
[TimeControl "40/5400+30:1800+30"]

1. d4 {[%emt 0:00:00]} d5 {[%emt 0:00:46]} 2. c4 {[%emt 0:00:22]} e6 {[%emt 0:00:08]} 3. Nf3 {[%emt 0:00:31]} Nf6 {[%emt 0:00:17]} 4. g3 {[%emt 0:00:35]} Bb4+ {[%emt 0:00:16]} 5. Bd2 {[%emt 0:00:43]} Bd6 {[%emt 0:00:14]} 6. Bg2 {[%emt 0:01:20]} c6 {[%emt 0:01:02]} 7. Qc2 {[%emt 0:00:55]} O-O {[%emt 0:00:44]} 8. O-O {[%emt 0:00:15]} Ne4 {[%emt 0:00:24]} 9. Nc3 {[%emt 0:01:45]} f5 {[%emt 0:00:10]} 10. a3 {[%emt 0:13:32]} Nd7 {[%emt 0:04:55]} 11. b4 {[%emt 0:02:11]} Bc7 {[%emt 0:02:23]} 12. cxd5 {[%emt 0:04:58]} exd5 {[%emt 0:03:58]} 13. Na4 {[%emt 0:05:27]} f4 {[%emt 0:11:22]} 14. Nc5 {[%emt 0:09:25]} Ndxc5 {[%emt 0:02:56]} 15. dxc5 {[%emt 0:03:33]} Bf5 {[%emt 0:07:49]} 16. Qb2 {[%emt 0:02:24]} fxg3 {[%emt 0:03:30]} 17. hxg3 {[%emt 0:01:45]} Qd7 {[%emt 0:00:17]} 18. Bc3 {[%emt 0:08:10]} Nxc3 {[%emt 0:03:27]} 19. Qxc3 {[%emt 0:00:09]} Rae8 {[%emt 0:00:35]} 20. Ra2 {[%emt 0:09:17]} Rf6 {[%emt 0:00:53]} 21. Rd1 {[%emt 0:05:50]} Be4 {[%emt 0:07:05]} 22. a4 {[%emt 0:07:40]} Qf5 {[%emt 0:03:53]} 23. Qc1 {[%emt 0:08:35]} Ref8 {[%emt 0:03:52]} 24. Qe3 {[%emt 0:06:18]} Qg4 {[%emt 0:03:18]} 25. Rd4 {[%emt 0:03:00]} h5 {[%emt 0:14:42]} 26. Qg5 {[%emt 0:03:33]} Qxg5 {[%emt 0:02:49]} 27. Nxg5 {[%emt 0:00:01]} Bxg2 {[%emt 0:00:18]} 28. Kxg2 {[%emt 0:00:21]} Rxf2+ {[%emt 0:00:03]} 29. Kh3 {[%emt 0:00:29]} Re8 {[%emt 0:00:22]} 30. Rdd2 {[%emt 0:00:50]} Re3 {[%emt 0:00:44]} 31. Nf3 {[%emt 0:00:24]} g5 {[%emt 0:00:18]} 0-1

[Event "14th Poti Open-A 2019"]
[Site "Poti"]
[Date "2019.07.14"]
[Round "2.13"]
[White "Gvetadze, Sofio"]
[Black "Asgarov, Nihad"]
[Result "1-0"]
[ECO "C02"]
[WhiteElo "2316"]
[BlackElo "1902"]
[Annotator "ChessBase"]
[PlyCount "43"]
[EventDate "2019.07.13"]
[EventType "swiss"]
[EventCountry "GEO"]
[SourceTitle "playchess.com"]
[Source "ChessBase"]
[SourceQuality "1"]
[TimeControl "40/5400+30:1800+30"]

1. e4 {[%emt 0:00:00]} e6 {[%emt 0:01:12]} 2. d4 {[%emt 0:00:00]} d5 {[%emt 0:00:06]} 3. e5 {[%emt 0:00:02]} c5 {[%emt 0:00:08]} 4. c3 {[%emt 0:00:06]} Nc6 {[%emt 0:00:07]} 5. Nf3 {[%emt 0:00:10]} Qb6 {[%emt 0:00:06]} 6. a3 {[%emt 0:00:12]} c4 {[%emt 0:00:12]} 7. g3 {[%emt 0:00:22]} Na5 {[%emt 0:00:51]} 8. Nbd2 {[%emt 0:00:18]} Bd7 {[%emt 0:00:16]} 9. h4 {[%emt 0:01:48]} Be7 {[%emt 0:03:39]} 10. Bh3 {[%emt 0:00:32]} O-O-O {[%emt 0:01:32]} 11. O-O {[%emt 0:00:35]} Kb8 {[%emt 0:00:27]} 12. Ne1 {[%emt 0:05:36]} Nb3 {[%emt 0:04:05]} 13. Nxb3 {[%emt 0:00:25]} Ba4 {[%emt 0:00:05]} 14. Qf3 {[%emt 0:00:30]} cxb3 {[%emt 0:01:30]} 15. Qxf7 {[%emt 0:02:23]} Bb5 {[%emt 0:00:05]} 16. Qxg7 {[%emt 0:00:49]} Bxf1 {[%emt 0:00:04]} 17. Bxf1 {[%emt 0:00:20]} Nf6 {[%emt 0:04:16]} 18. exf6 {[%emt 0:06:51]} Bd6 {[%emt 0:00:30]} 19. Nf3 {[%emt 0:08:29]} e5 {[%emt 0:08:51]} 20. Nxe5 {[%emt 0:04:58]} Bxe5 {[%emt 0:01:29]} 21. dxe5 {[%emt 0:00:07]} Rdg8 {[%emt 0:00:10]} 22. Be3 {[%emt 0:00:40]} 1-0